fUSD/lending_fUSD_20240319
["ID","MTS","AMOUNT","RATE_DAILY","PERIOD"]
[319539836,1710835839603,-452.33920673,0.00017613,2]
[319539838,1710835839613,-604.08921427,0.00017627,2]
[319539840,1710835839624,-2577.11996462,0.00017627,2]
[319539842,1710835839636,-412.37675671,0.00017627,2]
[319539844,1710835839646,-19.71254574,0.00017678,2]
[319539847,1710835839671,-781.75725668,0.00017678,2]
[319539849,1710835839685,-760.37378359,0.00017678,2]
[319539851,1710835839697,-274.07641399,0.00017678,2]
[319539853,1710835839706,-244.60788791,0.000177,2]
[319539859,1710835839754,-652.39211209,0.000177,2]
[319539861,1710835839764,-1835.92,0.00017743,2]
[319539862,1710835839773,-1835.92,0.00017808,2]
[319539863,1710835839783,-209.27,0.00017808,10]
[319539864,1710835839792,-1835.92,0.00017873,2]
[319539865,1710835839801,-509.30683858,0.00017889,2]
[319539866,1710835839810,-1835.92,0.00017938,2]
[319539868,1710835839819,-1835.92,0.00018003,2]
[319539870,1710835839828,-919.43104933,0.00018068,2]
[319539874,1710835839856,-916.48895067,0.00018068,2]
[319539876,1710835839865,-1835.92,0.00018133,2]
[319539878,1710835839876,-1332.27,0.00018191,2]
[319539880,1710835839886,-1835.92,0.00018198,2]
[319539882,1710835839895,-209.27,0.00018245,10]
[319539884,1710835839904,-1835.92,0.00018262,2]
[319539886,1710835839914,-1835.92,0.00018327,2]
[319539888,1710835839924,-1835.92,0.00018392,2]
[319539890,1710835839935,-1835.92,0.00018457,2]
[319539892,1710835839944,-1000.0,0.00018506,2]
[319539894,1710835839953,-1835.92,0.00018522,2]
[319539896,1710835839963,-1835.92,0.00018587,2]
[319539898,1710835839972,-1835.92,0.00018652,2]
[319539899,1710835839982,-209.27,0.00018681,10]
[319539901,1710835839991,-42112.21344747,0.000187,2]
[319539903,1710835840001,-1835.92,0.00018717,2]
[319539905,1710835840010,-553.91220313,0.00018757,2]
[319539908,1710835840022,-1492.31102269,0.00018757,2]
[319539910,1710835840031,-1697.17794626,0.00018782,2]
[319539912,1710835840042,-138.74205374,0.00018782,2]
[319539914,1710835840051,-1835.92,0.00018847,2]
[319539916,1710835840060,-315.7,0.00018972,2]
[319539918,1710835840070,-1272.82946906,0.0001899,2]
[319539919,1710835840079,-155.05944794,0.00019,2]
[319539921,1710835840088,-226.16242556,0.00019,2]
[319539923,1710835840097,-226.16242556,0.00019,2]
[319539925,1710835840107,-226.16242556,0.00019,2]
[319539927,1710835840116,-226.16242556,0.00019,2]
[319539929,1710835840125,-226.16242556,0.00019,2]
[319539931,1710835840134,-226.16242556,0.00019,2]
[319539933,1710835840145,-226.16242556,0.00019,2]
[319539935,1710835840154,-226.16242556,0.00019,2]
[319539937,1710835840163,-226.16242556,0.00019,2]
[319539939,1710835840172,-226.16242556,0.00019,2]
[319539941,1710835840185,-226.16242556,0.00019,2]
[319539943,1710835840194,-226.16242556,0.00019,2]
[319539945,1710835840203,-226.16242556,0.00019,2]
[319539947,1710835840211,-226.16242556,0.00019,2]
[319539949,1710835840221,-226.16242556,0.00019,2]
[319539951,1710835840231,-226.16242556,0.00019,2]
[319539953,1710835840241,-226.16242556,0.00019,2]
[319539955,1710835840251,-226.16242556,0.00019,2]
[319539957,1710835840261,-226.16242556,0.00019,2]
[319539959,1710835840271,-226.16242556,0.00019,2]
[319539962,1710835840283,-226.16242556,0.00019,2]
[319539963,1710835840292,-226.16242556,0.00019,2]
[319539965,1710835840302,-226.16242556,0.00019,2]
[319539967,1710835840311,-226.16242556,0.00019,2]
[319539969,1710835840320,-226.16242556,0.00019,2]
[319539971,1710835840330,-226.16242556,0.00019,2]
[319539973,1710835840339,-226.16242556,0.00019,2]
[319539975,1710835840348,-226.16242556,0.00019,2]
[319539976,1710835840357,-226.16242556,0.00019,2]
[319539977,1710835840366,-226.16242556,0.00019,2]
[319539979,1710835840376,-226.16242556,0.00019,2]
[319539981,1710835840384,-226.16242556,0.00019,2]
[319539983,1710835840393,-226.16242556,0.00019,2]
[319539985,1710835840403,-226.16242556,0.00019,2]
[319539987,1710835840412,-226.16242556,0.00019,2]
[319539988,1710835840421,-226.16242556,0.00019,2]
[319539990,1710835840432,-226.16242556,0.00019,2]
[319539992,1710835840441,-209.27,0.00019117,10]
[319539994,1710835840452,-500.0,0.00019178,2]
[319539996,1710835840461,-120.56928356,0.00019178,2]
[319540085,1710835842672,-341.96436141,0.00019177,2]
[319540086,1710835842683,-379.43071644,0.00019178,2]
[319540087,1710835842693,-506.05997187,0.00019178,2]
[319540089,1710835842703,-500.0,0.00019178,2]
[319540091,1710835842713,-359.73998794,0.00019178,2]
[319540093,1710835842722,-205.0,0.00019178,2]
[319540095,1710835842731,-180.0,0.00019288,2]
[319540096,1710835842741,-363.4667793,0.000195,2]
[319540098,1710835842749,-209.27,0.00019553,10]
[319540100,1710835842759,-213.48,0.0001974,2]
[319540102,1710835842768,-155.11028577,0.0002,2]
[319540104,1710835842777,-194.09771204,0.0002,2]
[319540106,1710835842787,-155.0,0.0002,2]
[319540108,1710835842797,-7479.35573459,0.0002,2]
[319540110,1710835842806,-1754.32004483,0.0002,2]
[319540112,1710835842816,-185.57773468,0.0002,2]
[319540114,1710835842825,-1247.10556605,0.0002,2]
[319540116,1710835842835,-194.66,0.0002,2]
[319540118,1710835842844,-221.82195621,0.0002,2]
[319540120,1710835842853,-221.82195621,0.0002,2]
[319540121,1710835842863,-221.82195621,0.0002,2]
[319540123,1710835842872,-400.0,0.0002,2]
[319540125,1710835842881,-221.82195621,0.0002,2]
[319540126,1710835842891,-221.82195621,0.0002,2]
[319540127,1710835842901,-221.82195621,0.0002,2]
[319540128,1710835842910,-221.82195621,0.0002,2]
[319540129,1710835842919,-221.82195621,0.0002,2]
[319540130,1710835842929,-221.82195621,0.0002,2]
[319540131,1710835842941,-221.82195621,0.0002,2]
[319540132,1710835842950,-221.82195621,0.0002,2]
[319540133,1710835842959,-221.82195621,0.0002,2]
[319540134,1710835842969,-221.82195621,0.0002,2]
[319540135,1710835842978,-221.82195621,0.0002,2]
[319540136,1710835842987,-221.82195621,0.0002,2]
[319540137,1710835842997,-221.82195621,0.0002,2]
[319540138,1710835843006,-221.82195621,0.0002,2]
[319540139,1710835843016,-221.82195621,0.0002,2]
[319540140,1710835843026,-221.82195621,0.0002,2]
[319540141,1710835843035,-221.82195621,0.0002,2]
[319540142,1710835843044,-221.82195621,0.0002,2]
[319540143,1710835843053,-221.82195621,0.0002,2]
[319540144,1710835843063,-221.82195621,0.0002,2]
[319540145,1710835843072,-221.82195621,0.0002,2]
[319540146,1710835843082,-221.82195621,0.0002,2]
[319540147,1710835843091,-221.82195621,0.0002,2]
[319540148,1710835843101,-221.82195621,0.0002,2]
[319540149,1710835843110,-221.82195621,0.0002,2]
[319540150,1710835843119,-221.82195621,0.0002,2]
[319540152,1710835843128,-221.82195621,0.0002,2]
[319540153,1710835843137,-221.82195621,0.0002,2]
[319540154,1710835843148,-221.82195621,0.0002,2]
[319540155,1710835843157,-221.82195621,0.0002,2]
[319540156,1710835843166,-221.82195621,0.0002,2]
[319540157,1710835843175,-221.82195621,0.0002,2]
[319540158,1710835843188,-221.82195621,0.0002,2]
[319540159,1710835843197,-221.82195621,0.0002,2]
[319540160,1710835843206,-221.82195621,0.0002,2]
[319540161,1710835843215,-221.82195621,0.0002,2]
[319540162,1710835843224,-221.82195621,0.0002,2]
[319540163,1710835843233,-221.82195621,0.0002,2]
[319540164,1710835843242,-221.82195621,0.0002,2]
[319540165,1710835843258,-221.82195621,0.0002,2]
[319540166,1710835843267,-221.82195621,0.0002,2]
[319540167,1710835843277,-221.82195621,0.0002,2]
[319540168,1710835843286,-221.82195621,0.0002,2]
[319540169,1710835843295,-221.82195621,0.0002,2]
[319540170,1710835843306,-221.82195621,0.0002,2]
[319540171,1710835843315,-221.82195621,0.0002,2]
[319540172,1710835843325,-221.82195621,0.0002,2]
[319540173,1710835843334,-221.82195621,0.0002,2]
[319540174,1710835843343,-221.82195621,0.0002,2]
[319540175,1710835843353,-221.82195621,0.0002,2]
[319540176,1710835843363,-221.82195621,0.0002,2]
[319540177,1710835843372,-221.82195621,0.0002,2]
[319540178,1710835843382,-221.82195621,0.0002,2]
[319540179,1710835843391,-221.82195621,0.0002,2]
[319540180,1710835843401,-221.82195621,0.0002,2]
[319540181,1710835843411,-221.82195621,0.0002,2]
[319540182,1710835843420,-221.82195621,0.0002,2]
[319540183,1710835843430,-221.82195621,0.0002,2]
[319540184,1710835843443,-221.82195621,0.0002,2]
[319540185,1710835843453,-221.82195621,0.0002,2]
[319540186,1710835843462,-221.82195621,0.0002,2]
[319540187,1710835843471,-221.82195621,0.0002,2]
[319540188,1710835843480,-221.82195621,0.0002,2]
[319540189,1710835843489,-221.82195621,0.0002,2]
[319540190,1710835843499,-221.82195621,0.0002,2]
[319540191,1710835843509,-221.82195621,0.0002,2]
[319540192,1710835843518,-221.82195621,0.0002,2]
[319540193,1710835843527,-221.82195621,0.0002,2]
[319540194,1710835843537,-221.82195621,0.0002,2]
[319540195,1710835843546,-221.82195621,0.0002,2]
[319540196,1710835843554,-221.82195621,0.0002,2]
[319540197,1710835843563,-221.82195621,0.0002,2]
[319540198,1710835843572,-221.82195621,0.0002,2]
[319540199,1710835843582,-221.82195621,0.0002,2]
[319540200,1710835843591,-221.82195621,0.0002,2]
[319540201,1710835843600,-221.82195621,0.0002,2]
[319540202,1710835843609,-221.82195621,0.0002,2]
[319540203,1710835843619,-221.82195621,0.0002,2]
[319540204,1710835843629,-221.82195621,0.0002,2]
[319540205,1710835843638,-221.82195621,0.0002,2]
[319540206,1710835843647,-221.82195621,0.0002,2]
[319540207,1710835843656,-221.82195621,0.0002,2]
[319540208,1710835843665,-221.82195621,0.0002,2]
[319540209,1710835843674,-221.82195621,0.0002,2]
[319540210,1710835843685,-221.82195621,0.0002,2]
[319540211,1710835843694,-221.82195621,0.0002,2]
[319540212,1710835843703,-221.82195621,0.0002,2]
[319540213,1710835843712,-221.82195621,0.0002,2]
[319540214,1710835843721,-221.82195621,0.0002,2]
[319540215,1710835843730,-221.82195621,0.0002,2]
[319540216,1710835843739,-221.82195621,0.0002,2]
[319540217,1710835843749,-221.82195621,0.0002,2]
[319540218,1710835843758,-221.82195621,0.0002,2]
[319540219,1710835843767,-221.82195621,0.0002,2]
[319540220,1710835843776,-221.82195621,0.0002,2]
[319540221,1710835843785,-221.82195621,0.0002,2]
[319540222,1710835843794,-221.82195621,0.0002,2]
[319540223,1710835843804,-1000.0,0.00020189,2]
[319540224,1710835843813,-170.34,0.00020548,2]
[319540225,1710835843823,-19371.03892811,0.00021,2]
[319540226,1710835843833,-184.92,0.00021096,2]
[319540227,1710835843842,-586.18,0.00021096,2]
[319540228,1710835843851,-1873.95773073,0.00021355,2]
[319540229,1710835843865,-1420.97488421,0.00021355,2]
[319540230,1710835843876,-298.65332066,0.00021355,2]
[319540231,1710835843885,-500.0,0.00021761,2]
[319540232,1710835843895,-159.4,0.00021918,10]
[319540233,1710835843904,-158.1,0.00021918,2]
[319540234,1710835843914,-250.0,0.00021918,2]
[319540235,1710835843924,-1361.44941736,0.00022,2]
[319540236,1710835843934,-213.48,0.00022004,2]
[319540237,1710835843944,-164.61,0.0002348,2]
[319540238,1710835843953,-641.07151674,0.00023614,2]
[319540239,1710835843965,-1405.15170908,0.00023614,2]
[319540240,1710835843974,-213.48,0.00024268,2]
[319540241,1710835843983,-600.0,0.000243,2]
[319540242,1710835843992,-275.5,0.000243,2]
[319540243,1710835844002,-490.94673811,0.00024481,2]
[319540244,1710835844020,-9.05326189,0.00024481,2]
[319540245,1710835844030,-9328.4707,0.0002453,2]
[319540246,1710835844039,-661.62358265,0.0002463,120]
[319540247,1710835844048,-350588.83716549,0.0002463,2]
[319540248,1710835844058,-611.68112481,0.0002463,30]
[319540249,1710835844068,-15852.09335288,0.0002463,2]
[319540250,1710835844078,-11329.41073966,0.00024797,2]
[319540251,1710835844088,-673039.81149399,0.00025,2]
[319540252,1710835844099,-818142.67746512,0.00025,2]
[319540253,1710835844153,-5917.76994183,0.00025,2]
[319540254,1710835844185,-69577.51553413,0.00025,2]
[319540255,1710835844198,-32237.88999999,0.00025,2]
[319540256,1710835844213,-330.3679996,0.00025,2]
[319540257,1710835844226,-315.879992,0.00025,2]
[319540258,1710835844238,-604.856143,0.00025,2]
[319540259,1710835844251,-459.71446,0.00025,2]
[319540260,1710835844264,-1971.85138307,0.00025,2]
[319540268,1710835845550,-64743.62228486,0.00025,2]
[319540271,1710835845563,-10808.82682037,0.00025,2]
[319540273,1710835845572,-764.08254333,0.00025082,2]
[319540293,1710835845749,-373.78379177,0.00025082,2]
[319540294,1710835845761,-2455.7196005,0.00025082,2]
[319540295,1710835845770,-275.5,0.000253,2]
[319540296,1710835845780,-998.4563497,0.00025629,2]
[319540297,1710835845792,-3641.6289503,0.00025629,2]
[319540298,1710835845801,-153.05383811,0.00025994,2]
[319540299,1710835845811,-155.4762304,0.00026237,2]
[319540300,1710835845820,-153.05383811,0.00026486,2]
[319540301,1710835845830,-213.48,0.00026532,2]
[319540302,1710835845839,-5266.48604308,0.00026831,2]
[319540303,1710835845852,-94733.51395692,0.00026831,2]
[319540304,1710835845861,-500.0,0.00027201,120]
[319540305,1710835845871,-154.56303768,0.00028121,2]
[319540306,1710835845880,-35134.7099346,0.00028237,2]
[319540307,1710835845904,-712.0,0.00028237,2]
[319540308,1710835845915,-2000.22843996,0.00028237,2]
[319540309,1710835845943,-19051.72963887,0.00028237,2]
[319540310,1710835845955,-32375.5,0.00028237,2]
[319540318,1710835880423,10000.0,0.00023225,90]
[319540319,1710835919047,9270.0,0.00023225,90]
[319540320,1710836253549,703.42,0.000122,2]
[319540333,1710836555249,191.33,0.00010247,2]
[319540334,1710836598694,23900.0,0.00012165,2]
[319540335,1710836779166,200.0,0.00012165,2]
[319540403,1710837031860,-297.14994958,0.00012509,2]
[319540407,1710837031878,-34.66676791,0.00012509,2]
[319540410,1710837031888,-155.0,0.00013684,2]
[319540413,1710837031898,-200.0,0.00013685,2]
[319540416,1710837031908,-188.39,0.00013699,2]
[319540419,1710837031918,-200.0,0.00015206,2]
[319540422,1710837031929,-200.0,0.00016726,2]
[319540425,1710837031939,-156.47907329,0.00016939,2]
[319540428,1710837031950,-150.0,0.00017799,2]
[319540431,1710837031959,-150.0,0.00017799,2]
[319540434,1710837031970,-770.2728472,0.000178,2]
[319540437,1710837031983,-57.7271528,0.000178,2]
[319540439,1710837031994,-688.50133214,0.000178,2]
[319540442,1710837032015,-1999.26866786,0.000178,2]
[319540444,1710837032025,-499.99,0.000178,2]
[319540446,1710837032035,-200.0,0.00018247,2]
[319540447,1710837032046,-350.0,0.00021,3]
[319540448,1710837032055,-145.79133214,0.00021659,2]
[319540449,1710837032073,-35.96866786,0.00021659,2]
[319540450,1710837032083,-273.225521,0.00021918,2]
[319540451,1710837032096,-273.225521,0.0002274,2]
[319540452,1710837032107,-1415.89,0.00022793,2]
[319540453,1710837032117,-400.0,0.00023,3]
[319540454,1710837032127,-220.02,0.00023037,2]
[319540455,1710837032139,-158.1,0.00023329,2]
[319540456,1710837032149,-250.0,0.00023532,2]
[319540457,1710837032160,-273.225521,0.00023562,2]
[319540458,1710837032262,-336.25185605,0.00023888,2]
[319540459,1710837032314,-213.86814395,0.00023888,2]
[319540460,1710837032326,-181.76,0.00023923,2]
[319540461,1710837032337,-171.51185605,0.0002427,2]
[319540462,1710837032355,-78.48814395,0.0002427,2]
[319540463,1710837032365,-250.0,0.00024274,2]
[319540464,1710837032376,-273.225521,0.00024384,2]
[319540465,1710837032386,-336.84,0.0002453,2]
[319540467,1710837032397,-159.4,0.00024565,10]
[319540469,1710837032408,-300.0,0.00024976,120]
[319540471,1710837032420,-5739.9948051,0.00024995,2]
[319540473,1710837032430,-1061.98097535,0.00024996,2]
[319540475,1710837032441,-204.47293258,0.00024998,2]
[319540477,1710837032450,-450.0,0.00025,3]
[319540479,1710837032460,-3000.0,0.00025,2]
[319540482,1710837032470,-273.225521,0.00025205,2]
[319540484,1710837032479,-155.4762304,0.00025366,2]
[319540487,1710837032489,-1415.89,0.00025533,2]
[319540489,1710837032498,-180.0,0.00025865,2]
[319540491,1710837032507,-273.225521,0.00026027,2]
[319540493,1710837032516,-181.76,0.00026187,2]
[319540495,1710837032525,-162.69661084,0.00026228,2]
[319540497,1710837032534,-2500.0,0.000263,2]
[319540498,1710837032543,-3930.82373878,0.000264,5]
[319540553,1710837037798,-1053.4426883,0.00026399,2]
[319540555,1710837037808,-9828.73292266,0.000264,5]
[319540557,1710837037821,-1485.05711099,0.000264,5]
[319540559,1710837037834,-464.33126978,0.000264,5]
[319540560,1710837037849,-677.67785191,0.000264,5]
[319540561,1710837037905,-1180.55249947,0.000264,5]
[319540562,1710837037917,-89979.99981799,0.000264,5]
[319540563,1710837037942,-20275.0,0.000264,5]
[319540564,1710837037968,-49338.03945312,0.000264,5]
[319540565,1710837037980,-17070.56895309,0.000264,5]
[319540566,1710837038034,-473.3383626,0.000264,5]
[319540567,1710837038215,-27521.49861127,0.000264,5]
[319540568,1710837038242,-812.103,0.00026401,2]
[319540569,1710837038254,-4189.01742237,0.00026498,5]
[319540570,1710837038264,-617.56745994,0.00026499,2]
[319540571,1710837038274,-303.84720435,0.00026499,2]
[319540572,1710837038284,-156.47907329,0.000265,2]
[319540573,1710837038294,-155.01331691,0.000265,2]
[319540574,1710837038304,-555.53825766,0.000265,2]
[319540575,1710837038318,-222063.39333164,0.000265,2]
[319540576,1710837038418,-2053.07639797,0.000265,2]
[319540577,1710837038434,-64000.0,0.000265,2]
[319540579,1710837038446,-263.68004,0.000265,2]
[319540581,1710837038458,-636.99636,0.000265,2]
[319540589,1710837039815,-3316.91360003,0.000265,2]
[319540590,1710837039827,-464.90567364,0.000265,2]
[319540591,1710837039854,-3468.04582084,0.000265,2]
[319540592,1710837039925,-1185.31478942,0.000265,2]
[319540593,1710837039937,-288.88,0.000265,2]
[319540594,1710837040034,-12904.30000001,0.000265,2]
[319540595,1710837040074,-1914.41247,0.000265,2]
[319540596,1710837040204,-340.5,0.000265,2]
[319540597,1710837040217,-3294.291,0.000265,2]
[319540598,1710837040255,-450.755,0.000265,2]
[319540599,1710837040275,-328.72,0.000265,2]
[319540600,1710837040295,-4706.04014007,0.000265,2]
[319540674,1710837043013,-35011.15849943,0.00026499,2]
[319540675,1710837043025,-94296.99969864,0.000265,2]
[319540676,1710837043070,-155.53347079,0.00026499,2]
[319540677,1710837043080,-40192.37582213,0.000265,2]
[319540678,1710837043092,-2870.62789204,0.000265,2]
[319540679,1710837043114,-38072.18310068,0.000265,2]
[319540680,1710837043126,-588.27531454,0.000265,2]
[319540681,1710837043138,-101277.37681851,0.000265,2]
[319540682,1710837043150,-48846.9719586,0.000265,2]
[319540683,1710837043184,-7005.5807746,0.000265,2]
[319540684,1710837043196,-11938.3074746,0.000265,2]
[319540685,1710837043213,-658.93097844,0.000265,2]
[319540686,1710837043247,-402295.58365862,0.000265,2]
[319540687,1710837043257,-392.91277273,0.000266,2]
[319540688,1710837043268,-2395.72395714,0.000267,2]
[319540689,1710837043281,-273.225521,0.00026849,2]
[319540690,1710837043291,-154.56303768,0.00026975,2]
[319540691,1710837043301,-500.0,0.00027,3]
[319540694,1710837043311,-155.4762304,0.00027313,2]
[319540695,1710837043320,-510.0,0.00027397,120]
[319540698,1710837043329,-510.0,0.00027671,120]
[319540699,1710837043339,-273.225521,0.00027671,14]
[319540702,1710837043351,-693.56,0.00027902,2]
[319540704,1710837043361,-510.0,0.00027945,120]
[319540706,1710837043371,-3000.0,0.0002795,2]
[319540709,1710837043381,-150.0,0.00027968,2]
[319540712,1710837043392,-150.0,0.00028007,2]
[319540716,1710837043402,-300.0,0.00028097,120]
[319540718,1710837043413,-500.0,0.00028136,2]
[319540720,1710837043423,-510.0,0.00028219,120]
[319540722,1710837043434,-1415.89,0.00028272,2]
[319540724,1710837043445,-181.76,0.00028451,2]
[319540726,1710837043456,-510.0,0.00028493,120]
[319540728,1710837043467,-273.225521,0.00028493,14]
[319540730,1710837043477,-174.27,0.00028715,2]
[319540781,1710837044002,-510.0,0.00028767,120]
[319540785,1710837044032,-154.56303768,0.00028772,2]
[319540787,1710837044043,-550.0,0.00029,3]
[319540789,1710837044052,-510.0,0.00029041,120]
[319540791,1710837044062,-2395.72395706,0.0002927,2]
[319540793,1710837044072,-510.0,0.00029315,120]
[319540795,1710837044082,-273.225521,0.00029315,14]
[319540797,1710837044091,-100000.0,0.00029489,2]
[319540799,1710837044103,-510.0,0.00029589,120]
[319540801,1710837044112,-118397.5925,0.000298,2]
[319540803,1710837044121,-510.23722598,0.00029863,120]
[319540805,1710837044131,-154.56303768,0.0002989,2]
[319540807,1710837044140,-150.9722901,0.00029923,2]
[319540809,1710837044150,-500.0,0.00029999,2]
[319540811,1710837044159,-165.0,0.00029999,2]
[319540813,1710837044169,-483.92004979,0.00029999,2]
[319540815,1710837044179,-1362.32645194,0.0003,120]
[319540817,1710837044189,-327.67797157,0.0003,7]
[319540818,1710837044198,-372280.07736462,0.0003,7]
[319540819,1710837044207,-569.37111613,0.0003,7]
[319540820,1710837044217,-2427.82539252,0.0003,4]
[319540821,1710837044226,-155.4762304,0.0003006,7]
[319540822,1710837044235,-3000.0,0.0003045,2]
[319540823,1710837044244,-19999.99,0.0003062,2]
[319540824,1710837044253,-3079.98,0.0003062,2]
[319540825,1710837044262,-155.4762304,0.00030714,7]
[319540827,1710837044273,-181.76,0.00030715,2]
[319540829,1710837044283,-600.0,0.00031,3]
[319540831,1710837044292,-300.0,0.00031219,120]
[319540833,1710837044301,-2395.72395706,0.0003184,3]
[319540835,1710837044311,-30000.0,0.00032,30]
[319540837,1710837044320,-153.80188616,0.00032614,7]
[319540839,1710837044330,-159.4,0.00032784,10]
[319540841,1710837044339,-3000.0,0.0003295,2]
[319540843,1710837044351,-181.76,0.00032979,2]
[319540845,1710837044360,-650.0,0.00033,3]
[319540847,1710837044370,-16945.95676399,0.00033297,7]
[319540849,1710837044379,-5800.0,0.000343,2]
[319540851,1710837044391,-300.0,0.00034341,120]
[319540853,1710837044400,-1190.0,0.000344,5]
[319540855,1710837044409,-2395.72395706,0.00034409,6]
[319540857,1710837044419,-220.02,0.00034555,2]
[319540859,1710837044429,-162.69661084,0.00034825,7]
[319540861,1710837044440,-700.0,0.00035,3]
[319540863,1710837044449,-5410.3821272,0.00035,35]
[319540865,1710837044458,-550.12,0.00035121,2]
[319540867,1710837044468,-153.80188616,0.00035227,7]
[319540869,1710837044478,-181.76,0.00035243,2]
[319540871,1710837044486,-3000.0,0.0003545,2]
[319540873,1710837044495,-166.44360794,0.00035795,7]
[319540875,1710837044505,-162.69661084,0.00035846,7]
[319540877,1710837044519,-155.4762304,0.0003585,7]
[319540878,1710837044528,-155.4762304,0.00036093,7]
[319540880,1710837044538,-186.42814041,0.0003657,7]
[319540882,1710837044547,-157.5968689,0.00036877,2]
[319540884,1710837044557,-68943.0261266,0.0003688,2]
[319540886,1710837044567,-2395.72395706,0.00036979,10]
[319540888,1710837044576,-300.0,0.00037463,120]
[319540890,1710837044586,-181.76,0.00037507,2]
[319540892,1710837044602,-3000.0,0.0003795,2]
[319540894,1710837044613,-153.30432521,0.00038176,7]
[319540896,1710837044623,-181074.93964658,0.000389,5]
[319540898,1710837044633,-154.5275948,0.00039241,7]
[319540900,1710837044643,-2395.72395706,0.00039549,13]
[319540902,1710837044653,-181.76,0.0003977,2]
[319540904,1710837044663,-155.4762304,0.00039884,7]
[319540906,1710837044675,-154.26943212,0.000399,2]
[319540908,1710837044685,-154.26943211,0.000399,2]
[319540910,1710837044695,-3000.0,0.0004045,4]
[319540912,1710837044705,-162.69661084,0.00040597,30]
[319540914,1710837044715,-169.36639489,0.00040624,30]
[319540916,1710837044725,-158.53908923,0.00040965,30]
[319540918,1710837044735,-159.4,0.00041004,10]
[319540920,1710837044745,-183.0,0.00041096,2]
[319540922,1710837044755,-802.926,0.00041133,2]
[319540924,1710837044764,-150.315,0.00041133,2]
[319540926,1710837044774,-1136.0,0.00041133,2]
[319540928,1710837044784,-3000.0,0.00041133,2]
[319540930,1710837044794,-413.0,0.00041133,2]
[319540932,1710837044803,-1458.0,0.00041133,2]
[319540934,1710837044812,-2418.0,0.00041133,2]
[319540936,1710837044822,-213.0,0.00041133,2]
[319540938,1710837044832,-1622.0,0.00041133,2]
[319540940,1710837044841,-2561.0,0.00041133,2]
[319540942,1710837044855,-4762.0,0.00041133,2]
[319540944,1710837044865,-959.0,0.00041133,2]
[319540946,1710837044875,-42884.0,0.00041133,2]
[319540948,1710837044885,-1378.0,0.00041133,2]
[319540950,1710837044895,-2445.0,0.00041133,2]
[319540952,1710837044904,-5670.0,0.00041133,2]
[319540954,1710837044914,-457.0,0.00041133,2]
[319540956,1710837044924,-1227.0,0.00041133,2]
[319540959,1710837044933,-536.0,0.00041133,2]
[319540961,1710837044943,-1044.0,0.00041133,2]
[319540962,1710837044952,-432.0,0.00041133,2]
[319540964,1710837044961,-1263.0,0.00041133,2]
[319540966,1710837044971,-154.56303768,0.00041303,30]
[319540969,1710837044980,-181.76,0.00042034,2]
[319540971,1710837044990,-2395.72395706,0.00042119,16]
[319540973,1710837044999,-150.0,0.00042204,120]
[319540974,1710837045009,-155.4762304,0.00042782,30]
[319540976,1710837045019,-357.0,0.00044133,2]
[319540979,1710837045029,-1779.565,0.00044133,2]
[319540980,1710837045039,-181.76,0.00044298,2]
[319540983,1710837045050,-162.69661084,0.00044366,30]
[319540985,1710837045060,-1000.0,0.000446,7]
[319540987,1710837045070,-2395.72395706,0.00044689,19]
[319540989,1710837045079,-173.83604616,0.000449,120]
[319540991,1710837045089,-100000.0,0.00045,35]
[319540992,1710837045102,-169.43339483,0.00045,7]
[319540995,1710837045112,-193.30637988,0.00045046,4]
[319540997,1710837045122,-159.0,0.00045126,30]